fUSD/lending_fUSD_20241029
["ID","MTS","AMOUNT","RATE_DAILY","PERIOD"]
[340969865,1730182245228,-1087.0,0.0002199,2]
[340969867,1730182245239,-25749.93348569,0.00022,5]
[340969869,1730182245250,-243.75035906,0.00022,2]
[340969872,1730182245260,-344263.48815651,0.00022,2]
[340969873,1730182245269,-716.37102618,0.00022,2]
[340969875,1730182245278,-2793.8469513,0.00022,2]
[340969876,1730182245287,-151.0,0.00022,7]
[340969877,1730182245296,-151.0,0.00022,7]
[340969878,1730182245306,-151.0,0.00022,7]
[340969879,1730182245316,-151.0,0.00022,7]
[340969880,1730182245326,-151.0,0.00022,7]
[340969881,1730182245336,-151.0,0.00022,7]
[340969882,1730182245346,-151.0,0.00022,7]
[340969883,1730182245356,-151.0,0.00022,7]
[340969885,1730182245366,-275.501332,0.00022,7]
[340969886,1730182245377,-151.0,0.00022,7]
[340969888,1730182245386,-151.0,0.00022,7]
[340969890,1730182245396,-151.0,0.00022,7]
[340969892,1730182245405,-161.202622,0.00022,7]
[340969894,1730182245415,-151.0,0.00022,7]
[340969896,1730182245425,-279.195,0.00022,7]
[340969898,1730182245435,-151.0,0.00022,7]
[340969900,1730182245444,-151.0,0.00022,7]
[340969902,1730182245454,-151.0,0.00022,7]
[340969904,1730182245464,-151.0,0.00022,7]
[340969906,1730182245473,-197.984388,0.00022,7]
[340969908,1730182245482,-151.0,0.00022,7]
[340969910,1730182245493,-151.0,0.00022,7]
[340969912,1730182245503,-151.0,0.00022,7]
[340969914,1730182245514,-151.0,0.00022,7]
[340969916,1730182245525,-151.0,0.00022,7]
[340969918,1730182245535,-151.0,0.00022,7]
[340969920,1730182245544,-949.363305,0.00022,7]
[340969922,1730182245555,-949.363305,0.00022,7]
[340969924,1730182245564,-949.363305,0.00022,7]
[340969926,1730182245574,-949.363305,0.00022,7]
[340969928,1730182245584,-229.984422,0.00022,7]
[340969930,1730182245593,-228.60762448,0.0002211,2]
[340969932,1730182245604,-161.07,0.00022134,2]
[340969934,1730182245614,-656.23,0.00022183,2]
[340969936,1730182245623,-187.89,0.00022406,2]
[340969938,1730182245633,-1000.0,0.00022419,2]
[340969939,1730182245643,-179.32,0.00022718,2]
[340969940,1730182245654,-201.2770906,0.00023,2]
[340969941,1730182245664,-400.0,0.00023,2]
[340969942,1730182245675,-5639.30085736,0.000232,2]
[340969943,1730182245687,-1002.26114535,0.00023342,2]
[340969944,1730182245697,-161.07,0.00023517,2]
[340969945,1730182245708,-167.0,0.00023732,2]
[340969946,1730182245718,-502.71787621,0.00023847,2]
[340969947,1730182245728,-1500.0,0.00023847,2]
[340969948,1730182245737,-1500.0,0.00023847,2]
[340969949,1730182245747,-130061.64203614,0.00023922,2]
[340969950,1730182245757,-2600.00000003,0.00023922,2]
[340969951,1730182245767,-151.0,0.00023922,7]
[340969952,1730182245777,-151.0,0.00023922,7]
[340969953,1730182245787,-151.0,0.00023922,7]
[340969954,1730182245797,-297.87355,0.00023922,7]
[340969955,1730182245807,-151.0,0.00023922,7]
[340969956,1730182245817,-151.0,0.00023922,7]
[340969957,1730182245827,-278.016438,0.00023922,7]
[340969958,1730182245837,-151.0,0.00023922,7]
[340969959,1730182245847,-151.0,0.00023922,7]
[340969960,1730182245856,-151.0,0.00023922,7]
[340969961,1730182245866,-151.0,0.00023922,7]
[340969962,1730182245876,-949.363305,0.00023922,7]
[340969963,1730182245887,-949.363305,0.00023922,7]
[340969964,1730182245897,-188.71583433,0.00024,30]
[340969965,1730182245907,-945.5872401,0.00024143,2]
[340969966,1730182245917,-5361.4958,0.0002416,2]
[340969967,1730182245926,-400.78644699,0.0002421,2]
[340969968,1730182245937,-775.71585196,0.0002425,2]
[340969969,1730182245946,-336.62848074,0.0002442,2]
[340969970,1730182245955,-656.23,0.00024447,2]
[340969971,1730182245965,-1000.0,0.00024457,2]
[340969972,1730182245975,-167.0,0.00024516,2]
[340969973,1730182245984,-1000.0,0.00024658,2]
[340969974,1730182245995,-1719.62,0.00024658,2]
[340969975,1730182246005,-246.84,0.00024658,4]
[340969976,1730182246016,-156.29,0.000247,2]
[340969977,1730182246026,-162.24,0.000247,7]
[340969978,1730182246036,-616.8,0.000247,7]
[340969979,1730182246046,-173.74,0.00024877,30]
[340969980,1730182246056,-297.201,0.0002489,2]
[340969981,1730182246066,-13571.0,0.0002489,2]
[340969982,1730182246076,-2192.855,0.0002489,2]
[340969983,1730182246086,-161.07,0.00024901,2]
[340969985,1730182246096,-59667.13829141,0.0002495,2]
[340969987,1730182246105,-151.0,0.0002499,7]
[340969988,1730182246115,-151.0,0.0002499,7]
[340969989,1730182246125,-1914.0,0.0002499,2]
[340969990,1730182246135,-811.0,0.0002499,2]
[340969991,1730182246145,-1087.0,0.0002499,2]
[340969992,1730182246155,-8055.1660373,0.00025,2]
[340969993,1730182246165,-65461.47918217,0.00025,2]
[340969994,1730182246174,-281.26893407,0.00025,2]
[340969995,1730182246184,-450.0,0.00025,2]
[340969996,1730182246193,-151.0,0.00025,7]
[340969997,1730182246203,-151.0,0.00025,7]
[340969998,1730182246213,-275.946403,0.00025,7]
[340969999,1730182246222,-151.0,0.00025,7]
[340970000,1730182246233,-151.0,0.00025,7]
[340970001,1730182246244,-151.0,0.00025,7]
[340970002,1730182246254,-151.0,0.00025,7]
[340970003,1730182246263,-949.363305,0.00025,7]
[340970004,1730182246274,-949.363305,0.00025,7]
[340970005,1730182246283,-167.0,0.00025299,2]
[340970006,1730182246292,-1175.28894528,0.00026,2]
[340970007,1730182246302,-4433.65,0.00026,2]
[340970008,1730182246312,-517.28546505,0.0002604,2]
[340970009,1730182246324,-167.0,0.00026083,2]
[340970010,1730182246333,-3875.82398495,0.000264,2]
[340970011,1730182246343,-656.23,0.00026711,2]
[340970012,1730182246352,-167.0,0.00026866,2]
[340970013,1730182246361,-162.24,0.000269,7]
[340970014,1730182246371,-88674.17608461,0.00027,7]
[340970015,1730182246380,-616.8,0.00027,7]
[340970016,1730182246389,-500.0,0.00027,2]
[340970017,1730182246398,-151.0,0.00027,7]
[340970018,1730182246408,-151.0,0.00027,7]
[340970019,1730182246417,-151.0,0.00027,7]
[340970020,1730182246426,-176.0,0.00027,2]
[340970021,1730182246434,-1048.1871095,0.00027091,2]
[340970022,1730182246446,-501.1731569,0.00027091,2]
[340970023,1730182246456,-151.0,0.00027397,7]
[340970024,1730182246465,-151.0,0.00027397,7]
[340970025,1730182246474,-298.241955,0.00027397,7]
[340970026,1730182246484,-151.0,0.00027397,7]
[340970027,1730182246495,-151.0,0.00027397,7]
[340970028,1730182246504,-153.834387,0.00027397,7]
[340970029,1730182246513,-180.01,0.00027397,2]
[340970030,1730182246523,-150.0,0.00027397,7]
[340970031,1730182246534,-152.609075,0.00027397,7]
[340970032,1730182246543,-250.0,0.00027397,2]
[340970033,1730182246553,-192.757186,0.00027397,14]
[340970034,1730182246562,-154.67,0.00027397,10]
[340970035,1730182246571,-267.89,0.00027397,10]
[340970036,1730182246580,-255.59,0.00027397,10]
[340970037,1730182246589,-167.0,0.00027649,2]
[340970038,1730182246598,-13571.0,0.0002789,2]
[340970039,1730182246607,-1649.768,0.0002799,2]
[340970040,1730182246616,-151.0,0.0002799,7]
[340970041,1730182246625,-167.936266,0.0002799,7]
[340970042,1730182246634,-151.0,0.0002799,7]
[340970043,1730182246643,-949.363305,0.0002799,7]
[340970044,1730182246652,-949.363305,0.0002799,7]
[340970045,1730182246663,-510.064,0.0002799,2]
[340970046,1730182246673,-151.0,0.00028284,7]
[340970047,1730182246682,-151.0,0.00028284,7]
[340970048,1730182246691,-656.23,0.00028975,2]
[340970050,1730182246700,-1256.82156721,0.00029,3]
[340970051,1730182246711,-550.0,0.00029,2]
[340970052,1730182246721,-1000.0,0.00029589,2]
[340970053,1730182246730,-231.78142772,0.00029832,2]
[340970054,1730182246739,-188.77382601,0.00029832,2]
[340970055,1730182246748,-2021.19522565,0.00029832,2]
[340970056,1730182246758,-6500.0,0.0003,7]
[340970057,1730182246767,-212.96655814,0.0003,2]
[340970058,1730182246777,-596.5,0.0003,3]
[340970059,1730182246786,-1964.66081365,0.0003,2]
[340970060,1730182246795,-208.58889552,0.0003,2]
[340970061,1730182246804,-1112.96,0.0003,2]
[340970062,1730182246815,-1112.96,0.0003,2]
[340970063,1730182246826,-1112.96,0.0003,2]
[340970064,1730182246836,-1112.96,0.0003,2]
[340970065,1730182246847,-1112.96,0.0003,2]
[340970066,1730182246857,-1112.96,0.0003,2]
[340970067,1730182246867,-1112.96,0.0003,2]
[340970068,1730182246876,-1112.96,0.0003,2]
[340970069,1730182246885,-1112.96,0.0003,2]
[340970070,1730182246894,-1112.96,0.0003,2]
[340970071,1730182246903,-4711.157,0.0003089,2]
[340970072,1730182246912,-680.84958974,0.00031,10]
[340970073,1730182246921,-600.0,0.00031,2]
[340970074,1730182246930,-656.23,0.00031239,2]
[340970075,1730182246939,-616.8,0.000314,7]
[340970076,1730182246948,-90719.44,0.00032,2]
[340970077,1730182246957,-151.0,0.00032,7]
[340970078,1730182246966,-169.791391,0.00032,7]
[340970079,1730182246975,-151.0,0.00032,7]
[340970080,1730182246984,-151.0,0.00032,7]
[340970081,1730182246994,-151.0,0.00032,7]
[340970082,1730182247003,-237.147271,0.00032,7]
[340970083,1730182247012,-213.967056,0.00032,7]
[340970084,1730182247022,-949.363305,0.00032,7]
[340970085,1730182247032,-949.363305,0.00032,7]
[340970086,1730182247042,-500.0,0.00032876,2]
[340970087,1730182247051,-151.0,0.00032877,7]
[340970088,1730182247061,-151.0,0.00032877,7]
[340970089,1730182247070,-151.0,0.00032877,7]
[340970090,1730182247079,-151.0,0.00032877,7]
[340970091,1730182247088,-151.0,0.00032877,7]
[340970092,1730182247098,-151.0,0.00032877,7]
[340970093,1730182247108,-173.2,0.00032877,7]
[340970094,1730182247117,-650.0,0.00033,2]
[340970095,1730182247126,-656.23,0.00033502,2]
[340970096,1730182247136,-156.29,0.00034057,2]
[340970097,1730182247145,-150.0,0.00034548,10]
[340970098,1730182247250,-173.74,0.00034696,120]
[340970099,1730182247260,-231.29352,0.00035,2]
[340970100,1730182247269,-700.0,0.00035,2]
[340970101,1730182247279,-350.4811401,0.00035,2]
[340970102,1730182247288,-374076.0,0.00035,2]
[340970103,1730182247297,-949.363305,0.00035,7]
[340970104,1730182247307,-949.363306,0.00035,7]
[340970105,1730182247317,-1000.0,0.00035616,2]
[340970106,1730182247328,-180.01,0.00035616,120]
[340970107,1730182247338,-616.8,0.000357,30]
[340970108,1730182247347,-656.23,0.00035766,2]
[340970109,1730182247356,-688.184246,0.0003604,7]
[340970110,1730182247367,-26287.1010751,0.0003604,7]
[340970111,1730182247376,-665.70148166,0.0003604,7]
[340970112,1730182247385,-345.76691319,0.0003604,7]
[340970113,1730182247394,-150.174,0.00036863,7]
[340970114,1730182247403,-750.0,0.00037,2]
[340970115,1730182247413,-152.0,0.00037059,3]
[340970116,1730182247427,-170.73212126,0.000372,103]
[340970117,1730182247437,-14356.10840887,0.000379,2]
[340970118,1730182247446,-10359.08760848,0.00038,10]
[340970119,1730182247455,-656.23,0.0003803,2]
[340970120,1730182247465,-643.15311088,0.00038356,2]
[340970121,1730182247474,-166.4345435,0.00038356,2]
[340970122,1730182247484,-245.46641287,0.00038356,2]
[340970123,1730182247494,-343.75,0.00038356,2]
[340970124,1730182247508,-4680.71432054,0.0003888,90]
[340970125,1730182247517,-800.0,0.00039,2]
[340970126,1730182247526,-500.0,0.00039053,60]
[340970127,1730182247535,-500.0,0.00039053,60]
[340970128,1730182247544,-500.0,0.00039053,60]
[340970129,1730182247554,-511.053,0.0003926,54]
[340970130,1730182247563,-152.0,0.00039343,4]
[340970131,1730182247572,-616.8,0.000395,30]
[340970132,1730182247582,-156.34,0.00039671,2]
[340970133,1730182247591,-422.09510914,0.00039738,30]
[340970134,1730182247600,-31060.08060423,0.000398,2]
[340970135,1730182247609,-15578.09124384,0.000398,2]
[340970136,1730182247618,-151.0,0.000398,14]
[340970137,1730182247628,-151.0,0.000398,14]
[340970138,1730182247637,-197.821631,0.000398,14]
[340970139,1730182247647,-151.0,0.000398,14]
[340970140,1730182247655,-500.18,0.0004,90]
[340970141,1730182247665,-163.97174488,0.0004,30]
[340970142,1730182247675,-623.55375712,0.0004,5]
[340970143,1730182247684,-150.45495073,0.0004,120]
[340970144,1730182247693,-164.24064786,0.0004,30]
[340970145,1730182247702,-600.0,0.0004,2]
[340970146,1730182247712,-312.4,0.0004,120]
[340970147,1730182247723,-154.0,0.0004,120]
[340970148,1730182247733,-5494.7475477,0.0004,120]
[340970149,1730182247742,-104105.10567731,0.0004,30]
[340970150,1730182247751,-20000.0,0.0004,2]
[340970151,1730182247761,-612.92743039,0.0004,30]
[340970152,1730182247770,-29890.0,0.0004,2]
[340970153,1730182247780,-54914.7034157,0.0004,120]
[340970154,1730182247789,-25373.47780616,0.0004,30]
[340970155,1730182247799,-868.88,0.0004,120]
[340970156,1730182247809,-439.43,0.0004,120]
[340970157,1730182247818,-1366.41,0.0004,120]
[340970158,1730182247828,-1041.72,0.0004,120]
[340970159,1730182247837,-160.91,0.0004,2]
[340970160,1730182247847,-160.91,0.0004,2]
[340970161,1730182247856,-160.91,0.0004,2]
[340970162,1730182247865,-160.91,0.0004,2]
[340970163,1730182247875,-422.09510914,0.0004004,30]
[340970164,1730182247884,-160.40820198,0.00040149,60]
[340970165,1730182247893,-565.13107855,0.00040149,60]
[340970166,1730182247903,-184.31029125,0.00040149,60]
[340970167,1730182247912,-656.23,0.00040294,2]
[340970168,1730182247921,-422.09510914,0.00040336,30]
[340970169,1730182247930,-597.28340248,0.0004041,20]
[340970170,1730182247939,-1234.0,0.00040658,120]
[340970171,1730182247948,-508.894657,0.000407,42]
[340970172,1730182247957,-422.09510914,0.00040711,30]
[340970173,1730182247966,-6647.54,0.00040821,120]
[340970174,1730182247975,-422.09510914,0.00040877,30]
[340970175,1730182247984,-61344.01053273,0.000409,2]
[340970176,1730182248079,-45.41219727,0.000409,2]
[340970177,1730182248089,-10566.83371536,0.00041,30]
[340970178,1730182248098,-850.0,0.00041,2]
[340970179,1730182248107,-1252.07257924,0.00041095,120]
[340970180,1730182248117,-1000.0,0.00041096,5]
[340970181,1730182248126,-1000.0,0.00041096,5]
[340970182,1730182248136,-1000.0,0.00041096,5]
[340970183,1730182248145,-1000.0,0.00041096,5]
[340970184,1730182248154,-1000.0,0.00041096,5]
[340970185,1730182248163,-1000.0,0.00041096,5]
[340970186,1730182248173,-1000.0,0.00041096,5]
[340970187,1730182248182,-1000.0,0.00041096,5]
[340970188,1730182248192,-1000.0,0.00041096,5]
[340970189,1730182248201,-1000.0,0.00041096,5]
[340970190,1730182248210,-1000.0,0.00041096,5]
[340970191,1730182248221,-404.0,0.00041096,5]
[340970192,1730182248233,-150.0,0.00041096,2]
[340970193,1730182248245,-157.0,0.00041096,2]
[340970194,1730182248258,-616.8,0.000411,30]
[340970195,1730182248271,-11535.0,0.000411,3]
[340970196,1730182248281,-908.0,0.000411,2]
[340970197,1730182248292,-189.0,0.000411,2]
[340970198,1730182248304,-422.09510914,0.0004127,30]
[340970199,1730182248315,-1000.0,0.000413,30]
[340970200,1730182248326,-422.09510914,0.00041479,30]
[340970201,1730182248339,-152.0,0.00041627,5]
[340970202,1730182248351,-500.0,0.000417,42]
[340970203,1730182248364,-795.77988197,0.0004188,2]
[340970204,1730182248377,-422.09510914,0.00041902,30]
[340970205,1730182248390,-523.31739804,0.00041917,118]
[340970206,1730182248404,-6647.54,0.00041917,120]
[340970207,1730182248415,-150.0,0.00041919,2]
[340970208,1730182248427,-422.09510914,0.0004196,30]
[340970209,1730182248440,-500.0,0.00042,4]
[340970210,1730182248455,-465.62121984,0.00042,120]
[340970211,1730182248466,-1831.03754792,0.00042,2]
[340970212,1730182248478,-353933.64797884,0.00042,2]
[340970213,1730182248492,-36994.87,0.00042008,7]
[340970214,1730182248504,-2865.21,0.00042008,7]
[340970215,1730182248516,-150.0,0.00042093,2]
[340970216,1730182248531,-150.0,0.00042118,2]
[340970217,1730182248541,-150.0,0.00042138,2]
[340970218,1730182248552,-150.0,0.00042151,2]
[340970219,1730182248564,-150.0,0.00042162,2]
[340970220,1730182248575,-150.0,0.00042177,2]
[340970221,1730182248587,-150.0,0.00042177,2]
[340970222,1730182248599,-150.0,0.00042192,2]
[340970223,1730182248611,-422.09510914,0.00042193,30]
[340970224,1730182248624,-11535.0,0.000422,5]
[340970225,1730182248636,-358.45871454,0.00042253,4]
[340970226,1730182248649,-331.11930333,0.00042254,4]
[340970227,1730182248662,-331.11930333,0.00042256,4]
[340970228,1730182248676,-633.82163582,0.00042262,4]
[340970229,1730182248689,-200.0,0.00042264,4]
[340970230,1730182248700,-150.0,0.00042273,2]
[340970231,1730182248711,-150.0,0.00042289,2]
[340970232,1730182248722,-150.0,0.0004229,2]
[340970233,1730182248733,-150.0,0.00042304,2]
[340970234,1730182248744,-200.0,0.00042308,4]
[340970235,1730182248757,-200.0,0.00042313,4]
[340970236,1730182248771,-200.0,0.00042326,4]
[340970237,1730182248784,-358.45871454,0.00042327,4]
[340970238,1730182248794,-358.45871454,0.00042327,4]
[340970239,1730182248805,-200.0,0.00042333,4]
[340970240,1730182248818,-358.45871454,0.0004234,4]
[340970241,1730182248829,-200.0,0.00042342,4]
[340970242,1730182248842,-331.11930333,0.00042346,4]
[340970243,1730182248853,-150.0,0.00042349,2]
[340970244,1730182248864,-150.0,0.00042354,2]
[340970245,1730182248875,-331.11930333,0.00042367,4]
[340970246,1730182248885,-150.0,0.00042371,2]
[340970247,1730182248896,-358.45871454,0.00042373,4]
[340970248,1730182248907,-633.82163582,0.00042384,4]
[340970249,1730182248918,-150.0,0.00042392,2]
[340970250,1730182248930,-633.82163582,0.00042393,4]
[340970251,1730182248941,-150.0,0.00042394,2]
[340970252,1730182248952,-150.0,0.00042399,2]
[340970253,1730182248963,-200.0,0.00042411,4]
[340970254,1730182248974,-331.11930333,0.00042419,4]
[340970255,1730182248985,-150.0,0.00042419,2]
[340970256,1730182248996,-200.0,0.00042419,4]
[340970257,1730182249008,-633.82163582,0.00042425,4]
[340970258,1730182249019,-200.0,0.00042429,4]
[340970259,1730182249030,-150.0,0.00042448,2]
[340970260,1730182249041,-16860.0,0.00042463,7]
[340970261,1730182249053,-358.45871454,0.00042468,4]
[340970262,1730182249064,-633.82163582,0.00042479,4]
[340970263,1730182249075,-150.0,0.00042482,2]
[340970264,1730182249087,-200.0,0.0004249,4]
[340970265,1730182249098,-633.82163582,0.00042491,4]
[340970266,1730182249110,-200.0,0.00042492,4]
[340970267,1730182249121,-331.11930333,0.00042493,4]
[340970268,1730182249133,-150.0,0.00042496,7]
[340970269,1730182249144,-200.0,0.00042498,4]
[340970270,1730182249156,-200.0,0.00042499,4]
[340970271,1730182249167,-564.01551756,0.000425,2]
[340970272,1730182249178,-616.8,0.000425,30]
[340970273,1730182249189,-150.0,0.00042516,2]
[340970274,1730182249200,-150.0,0.00042525,2]
[340970275,1730182249211,-150.0,0.00042531,2]
[340970276,1730182249221,-150.0,0.00042537,2]
[340970277,1730182249233,-656.23,0.00042558,2]
[340970278,1730182249244,-150.0,0.000426,2]
[340970279,1730182249255,-150.0,0.0004262,2]
[340970280,1730182249267,-150.0,0.00042631,2]
[340970281,1730182249278,-150.0,0.00042636,2]
[340970282,1730182249291,-150.0,0.00042663,2]
[340970283,1730182249302,-422.09510914,0.00042682,30]
[340970284,1730182249311,-500.0,0.000427,42]
[340970285,1730182249321,-150.0,0.00042706,2]
[340970286,1730182249330,-150.0,0.00042712,2]
[340970287,1730182249340,-150.0,0.00042715,2]
[340970288,1730182249349,-162.613951,0.00042723,30]
[340970289,1730182249358,-422.09510914,0.00042791,30]
[340970290,1730182249370,-150.0,0.000428,2]
[340970291,1730182249380,-150.0,0.00042804,2]
[340970292,1730182249390,-150.0,0.00042816,2]
[340970293,1730182249400,-150.0,0.00042821,2]
[340970294,1730182249409,-150.0,0.00042827,2]
[340970295,1730182249419,-150.0,0.00042854,2]
[340970296,1730182249429,-1066.15985549,0.00042863,7]
[340970297,1730182249443,-6349.91533751,0.00042863,7]
[340970298,1730182249452,-2775.265778,0.00042863,7]
[340970299,1730182249462,-1410.92361,0.00042863,7]
[340970300,1730182249472,-208.42585825,0.00042863,15]
[340970301,1730182249481,-150.0,0.00042869,2]
[340970302,1730182249649,-150.0,0.00042893,2]
[340970303,1730182249667,-150.0,0.00042895,2]
[340970304,1730182249677,-55996.42902038,0.000429,60]
[340970305,1730182249687,-276.8,0.000429,120]
[340970306,1730182249697,-150.0,0.00042902,2]
[340970307,1730182249706,-150.0,0.00042944,2]
[340970308,1730182249716,-175.83663962,0.00042959,2]
[340970309,1730182249725,-1500.0,0.00042959,7]
[340970310,1730182249735,-150.0,0.00042967,2]
[340970311,1730182249745,-150.0,0.00042974,2]
[340970312,1730182249755,-13829.59076927,0.0004298,7]
[340970313,1730182249765,-284.40745687,0.0004298,7]
[340970314,1730182249774,-273.073,0.00042986,30]
[340970315,1730182249785,-150.0,0.00042997,2]
[340970316,1730182249795,-1105.95756491,0.00043,120]
[340970317,1730182249805,-229.33721774,0.00043,5]
[340970318,1730182249814,-3000.0,0.00043,120]
[340970319,1730182249824,-26644.53981683,0.00043,30]
[340970320,1730182249834,-250.0,0.00043,2]
[340970321,1730182249843,-62392.52329842,0.00043,2]
[340970322,1730182249853,-1000.0,0.00043,30]
[340970323,1730182249862,-245.0,0.00043,120]
[340970324,1730182249871,-300.0,0.00043,30]
[340970325,1730182249881,-1018.0,0.00043,2]
[340970326,1730182249891,-1000.0,0.00043,3]
[340970327,1730182249900,-1000.0,0.00043,5]
[340970328,1730182249910,-900.0,0.00043,2]
[340970329,1730182249919,-353.77858276,0.00043,30]
[340970330,1730182249929,-2053.11412302,0.00043,30]
[340970331,1730182249938,-1363.04057365,0.00043003,10]
[340970332,1730182249948,-6647.54,0.00043013,120]
[340970333,1730182249958,-1045.61579597,0.00043014,7]
[340970334,1730182249967,-150.0,0.0004304,2]
[340970335,1730182249976,-150.0,0.00043055,2]
[340970336,1730182249986,-150.0,0.00043088,2]
[340970337,1730182249996,-150.0,0.00043089,2]
[340970338,1730182250007,-150.0,0.00043089,2]
[340970339,1730182250016,-2045.0136749,0.000431,120]
[340970340,1730182250028,-150.0,0.0004311,2]
[340970341,1730182250037,-1500.0,0.00043134,7]
[340970342,1730182250046,-150.0,0.00043142,2]
[340970343,1730182250055,-150.0,0.00043155,2]
[340970344,1730182250065,-150.0,0.00043184,2]
[340970345,1730182250075,-150.0,0.00043186,2]
[340970346,1730182250085,-1500.0,0.00043194,7]
[340970347,1730182250094,-159.36828299,0.00043203,7]
[340970348,1730182250104,-150.0,0.00043205,2]
[340970349,1730182250113,-150.0,0.00043213,2]
[340970350,1730182250123,-881.58077331,0.00043242,30]
[340970351,1730182250133,-422.09510914,0.00043242,30]
[340970352,1730182250142,-1500.0,0.00043246,7]
[340970353,1730182250152,-150.0,0.00043258,2]
[340970354,1730182250163,-150.0,0.00043259,2]
[340970355,1730182250173,-150.0,0.00043279,2]
[340970356,1730182250183,-150.0,0.00043281,2]
[340970357,1730182250192,-150.0,0.00043288,2]
[340970358,1730182250202,-150.0,0.00043296,2]
[340970359,1730182250212,-1251.12378416,0.00043297,7]
[340970360,1730182250222,-150.0,0.00043305,2]
[340970361,1730182250232,-150.0,0.00043309,2]
[340970362,1730182250241,-1500.0,0.0004331,7]
[340970363,1730182250251,-1500.0,0.00043317,7]
[340970364,1730182250261,-111695.7875488,0.0004333,30]
[340970365,1730182250271,-150.0,0.00043336,2]
[340970366,1730182250281,-150.0,0.00043339,2]
[340970367,1730182250291,-422.09510914,0.0004336,30]
[340970368,1730182250300,-1500.0,0.0004337,7]
[340970369,1730182250310,-150.0,0.00043372,2]
[340970370,1730182250319,-30171.55319652,0.000434,60]
[340970371,1730182250328,-2000.0,0.000434,120]
[340970372,1730182250339,-150.0,0.000434,2]
[340970373,1730182250349,-150.0,0.00043411,2]
[340970374,1730182250358,-150.0,0.00043411,2]
[340970375,1730182250368,-156.29,0.00043414,2]
[340970376,1730182250379,-63975.75781401,0.0004343,2]
[340970377,1730182250388,-150.0,0.0004343,2]
[340970378,1730182250398,-150.0,0.00043439,2]
[340970379,1730182250407,-1500.0,0.00043451,7]
[340970380,1730182250419,-150.0,0.00043466,2]
[340970381,1730182250428,-150.0,0.00043474,7]
[340970382,1730182250438,-150.0,0.00043495,2]
[340970383,1730182250452,-180.10291,0.00043498,120]
[340970384,1730182250462,-1500.0,0.00043506,7]
[340970385,1730182250471,-150.0,0.00043514,2]
[340970386,1730182250481,-150.0,0.00043518,2]
[340970387,1730182250491,-1500.0,0.00043527,7]
[340970388,1730182250502,-150.0,0.00043538,2]
[340970389,1730182250512,-150.0,0.00043555,2]
[340970390,1730182250521,-150.0,0.00043571,2]
[340970391,1730182250532,-150.0,0.00043572,2]
[340970392,1730182250543,-150.0,0.00043573,2]
[340970393,1730182250552,-1500.0,0.00043579,7]
[340970394,1730182250562,-150.0,0.00043586,2]
[340970395,1730182250572,-150.0,0.00043589,2]
[340970396,1730182250582,-150.0,0.00043594,2]
[340970397,1730182250591,-150.0,0.00043597,2]
[340970398,1730182250601,-150.0,0.00043597,2]
[340970399,1730182250610,-1258.0,0.000436,120]